bitfinex-derivatives/quotes_BTCF0:USTF0_20251216
["timestamp","ask_amount","ask_price","bid_price","bid_amount"]
[1765895005623,0.57601711,87130.0,87129.0,0.1101997]
[1765895006120,0.18635,87126.0,87125.0,0.0114802]
[1765895006323,0.18635,87119.0,87118.0,0.0114811]
[1765895006520,0.18635,87116.0,87115.0,0.0114815]
[1765895006720,0.18635,87116.0,87111.0,0.00017223]
[1765895006721,0.18635,87112.0,87111.0,0.00017223]
[1765895006910,0.2107816,87112.0,87111.0,0.00017223]
[1765895007521,0.18635,87097.0,87085.0,0.0114854]
[1765895007825,0.18635,87095.0,87080.0,0.0114861]
[1765895008122,0.02443839,87094.0,87080.0,0.0114861]
[1765895008322,0.02443839,87093.0,87080.0,0.0114861]
[1765895008621,0.09,87093.0,87092.0,0.0114846]
[1765895008928,0.11443684,87093.0,87092.0,0.2043946]
[1765895009126,0.21078684,87093.0,87092.0,0.2043946]
[1765895009316,0.02443684,87093.0,87092.0,0.2043946]
[1765895009712,0.53061223,87097.0,87096.0,0.2043941]
[1765895009912,0.74139619,87097.0,87096.0,0.19291]
[1765895010122,0.18635,87093.0,87092.0,0.0114845]
[1765895010325,0.18635,87093.0,87092.0,0.2043945]
[1765895010515,0.00017223,87097.0,87096.0,0.2043941]
[1765895011030,0.15452,87116.0,87115.0,0.2043914]
[1765895011229,0.17894689,87116.0,87115.0,0.2043914]
[1765895011425,0.36529689,87116.0,87115.0,0.1102014]
[1765895011723,0.18635,87112.0,87111.0,0.011482]
[1765895012325,0.21078623,87112.0,87111.0,0.011482]
[1765895012510,0.02443623,87112.0,87111.0,0.204392]
[1765895012715,0.09,87114.0,87113.0,0.0708118]
[1765895012920,0.18635,87113.0,87112.0,0.0114819]
[1765895013118,0.21078735,87113.0,87112.0,0.0114819]
[1765895013724,0.02443735,87113.0,87112.0,0.2066119]
[1765895014031,1.43584,87129.0,87120.0,0.05781]
[1765895014226,0.09588,87121.0,87120.0,0.0692909]
[1765895014525,0.84372499,87121.0,87120.0,0.2549009]
[1765895015429,0.93678499,87121.0,87120.0,0.0114809]
[1765895015630,0.93778499,87121.0,87120.0,0.0114809]
[1765895016620,0.02644499,87121.0,87120.0,0.2549009]
[1765895016824,0.002,87121.0,87120.0,0.2549009]
[1765895017225,0.1225837,87121.0,87120.0,0.2549009]
[1765895017428,0.2146437,87121.0,87120.0,0.0114809]
[1765895018134,0.18794,87118.0,87117.0,0.0114813]
[1765895018428,0.2126437,87118.0,87117.0,0.0114813]
[1765895018623,0.0247037,87118.0,87100.0,0.0114835]
[1765895018825,0.09588,87119.0,87118.0,0.1970912]
[1765895019027,0.18794,87109.0,87108.0,0.14701]
[1765895019224,0.18794,87109.0,87108.0,0.1584925]
[1765895019225,0.21264847,87109.0,87108.0,0.1584925]
[1765895019433,0.21264847,87109.0,87108.0,0.0114825]
[1765895020431,0.21264847,87109.0,87108.0,0.1584925]
[1765895020631,0.02470847,87109.0,87108.0,0.2549025]
[1765895020935,0.18794,87127.0,87126.0,0.0114801]
[1765895021131,0.2408457,87127.0,87126.0,0.0114801]
[1765895021434,0.18794,87124.0,87123.0,0.0114804]
[1765895021622,0.2126457,87124.0,87123.0,0.0114804]
[1765895021825,0.9359657,87124.0,87123.0,0.0114804]
[1765895023728,0.9369657,87124.0,87123.0,0.0114804]
[1765895023929,0.2136457,87124.0,87123.0,0.0114804]
[1765895024235,0.2136457,87124.0,87108.0,0.05781]
[1765895024236,0.19265,87121.0,87120.0,0.0114809]
[1765895024436,0.19265,87118.0,87117.0,0.0114812]
[1765895024637,0.2173557,87118.0,87117.0,0.0114812]
[1765895025724,0.0247057,87118.0,87117.0,0.2016012]
[1765895025939,0.12031512,87123.0,87122.0,0.2016006]
[1765895026232,0.19265,87120.0,87119.0,0.0114809]
[1765895026435,0.02471512,87120.0,87119.0,0.2016009]
[1765895026622,0.0956,87122.0,87121.0,0.19012]
[1765895026824,0.19265,87121.0,87108.0,0.05781]
[1765895027038,0.19265,87121.0,87120.0,0.2571809]
[1765895027230,0.21736695,87121.0,87120.0,0.2571809]
[1765895028433,0.1893,87118.0,87117.0,0.0114812]
[1765895028634,0.21401695,87118.0,87117.0,0.0114812]
[1765895028940,0.1893,87109.0,87108.0,0.2403]
[1765895029432,0.47946722,87120.0,87119.0,0.011481]
[1765895029638,0.5574176,87120.0,87119.0,0.104681]
[1765895029842,0.5574176,87120.0,87119.0,0.011481]
[1765895030232,0.5574176,87120.0,87108.0,0.05781]
[1765895030233,0.19062,87109.0,87108.0,0.15633]
[1765895030435,0.19062,87109.0,87108.0,0.1688125]
[1765895030636,0.19062,87109.0,87108.0,0.2642625]
[1765895030936,0.19062,87109.0,87108.0,0.2632625]
[1765895031138,0.21533941,87109.0,87108.0,0.2622625]
[1765895032224,0.21533941,87109.0,87108.0,0.25078]
[1765895032425,0.21533941,87109.0,87103.0,0.10917533]
[1765895032426,0.19062,87104.0,87103.0,0.10917533]
[1765895032625,0.21533941,87104.0,87103.0,0.10917533]
[1765895032941,0.21533941,87104.0,87103.0,0.00017223]
[1765895033526,0.21533941,87104.0,87103.0,0.00117223]
[1765895034238,0.21533941,87104.0,87103.0,0.00017223]
[1765895034436,0.21633941,87104.0,87103.0,0.00017223]
[1765895036038,0.21733941,87104.0,87103.0,0.00017223]
[1765895037232,0.19062,87088.0,87076.0,0.05784]
[1765895037441,0.19062,87078.0,87077.0,0.1930793]
[1765895037644,0.2153408,87078.0,87077.0,0.2045659]
[1765895037845,0.0247208,87078.0,87077.0,0.2045659]
[1765895038031,0.2021051,87088.0,87087.0,0.0114851]
[1765895038237,0.21534308,87088.0,87087.0,0.0114851]
[1765895038437,0.93830308,87088.0,87087.0,0.0114851]
[1765895038640,0.19062,87080.0,87079.0,0.19314223]
[1765895038833,0.21534308,87080.0,87079.0,0.20462853]
[1765895039141,0.21534308,87080.0,87079.0,0.01165853]
[1765895039337,0.21534308,87080.0,87079.0,0.00017223]
[1765895039832,0.21534308,87080.0,87079.0,0.00117223]
[1765895040139,0.25604308,87080.0,87079.0,0.00117223]
[1765895040342,0.25604308,87080.0,87060.0,0.05557]
[1765895040343,0.19062,87065.0,87064.0,0.0114882]
[1765895040533,0.02472308,87065.0,87064.0,0.2044582]
[1765895040931,0.21534308,87065.0,87064.0,0.0114882]
[1765895041334,0.21546292,87065.0,87064.0,0.0114882]
[1765895041540,0.02484292,87065.0,87064.0,0.2044582]
[1765895041740,0.21546292,87065.0,87064.0,0.2044582]
[1765895041942,0.19062,87061.0,87060.0,0.0670587]
[1765895042137,0.21534308,87061.0,87060.0,0.0114887]
[1765895042343,0.19062,87059.0,87056.0,0.00017223]
[1765895042536,0.21528747,87059.0,87056.0,0.01166153]
[1765895042740,0.09356984,87065.0,87064.0,0.2044583]
[1765895042950,0.21540622,87065.0,87064.0,0.2044583]
[1765895043342,0.00011984,87065.0,87064.0,0.2044583]
[1765895044959,0.09311984,87065.0,87064.0,0.2044583]
[1765895045166,0.00011984,87065.0,87064.0,0.2044583]
[1765895045556,0.00011984,87065.0,87064.0,0.2054583]
[1765895045858,0.00011984,87065.0,87064.0,0.2064583]
[1765895046162,0.00011984,87065.0,87064.0,0.2044583]
[1765895046355,0.00011984,87065.0,87064.0,0.2054583]
[1765895046761,0.00011984,87065.0,87064.0,0.2044583]
[1765895046960,0.00011984,87065.0,87064.0,0.2064583]
[1765895047167,0.00011984,87065.0,87064.0,0.2084583]
[1765895048154,0.00017223,87073.0,87072.0,0.1992572]
[1765895048864,0.18497223,87073.0,87072.0,0.1992572]
[1765895049366,0.00017223,87073.0,87072.0,0.1992572]
[1765895049564,0.00017223,87073.0,87072.0,0.2002572]
[1765895049870,0.00017223,87073.0,87072.0,0.2012572]
[1765895050264,0.18497223,87073.0,87072.0,0.2012572]
[1765895050564,0.18497223,87073.0,87072.0,0.2002572]
[1765895050966,0.00017223,87073.0,87072.0,0.2002572]
[1765895051664,0.29598736,87093.0,87092.0,0.1992546]
[1765895051856,0.35856,87093.0,87092.0,0.18777]
[1765895052061,0.1848,87087.0,87086.0,0.0114854]
[1765895052464,0.1848,87084.0,87083.0,0.18777]
[1765895052666,0.17376,87093.0,87072.0,0.003]
[1765895052667,0.1848,87080.0,87079.0,0.0114863]
[1765895053162,0.1848,87080.0,87079.0,0.1992563]
[1765895053670,0.1848,87079.0,87078.0,0.00017223]
[1765895053869,0.1962863,87079.0,87078.0,0.00017223]
[1765895054466,0.1848,87059.0,87058.0,0.19006733]
[1765895054670,0.1848,87059.0,87058.0,0.01378643]
[1765895054865,0.1848,87059.0,87058.0,0.00229733]
[1765895055068,0.20954293,87059.0,87058.0,0.00229733]
[1765895055268,0.1848,87047.0,87046.0,0.0114905]
[1765895055466,0.1848,87047.0,87046.0,0.1011205]
[1765895056575,0.18497223,87055.0,87054.0,0.2559996]
[1765895056778,0.0114898,87053.0,87043.0,0.05674]
[1765895057076,0.093,87047.0,87046.0,0.1021207]
[1765895057271,0.093,87047.0,87046.0,0.2002607]
[1765895057467,0.093,87047.0,87046.0,0.2012607]
[1765895057670,0.18497223,87055.0,87054.0,0.0114896]
[1765895057863,0.18497223,87055.0,87054.0,0.2559996]
[1765895057864,0.56325223,87055.0,87054.0,0.2559996]
[1765895058069,0.56325223,87055.0,87054.0,0.24451]
[1765895058264,0.56325223,87055.0,87054.0,0.2559996]
[1765895058569,0.1962916,87039.0,87038.0,0.00017223]
[1765895058769,0.1848,87039.0,87038.0,0.00017223]
[1765895059379,0.20953572,87039.0,87038.0,0.00017223]
[1765895060081,0.1962936,87024.0,87018.0,0.01379279]
[1765895060283,0.98446932,87024.0,87018.0,0.00229839]
[1765895060677,0.1962942,87019.0,87018.0,0.00229839]
[1765895061572,0.19639211,87019.0,87018.0,0.00229839]
[1765895061772,9.791e-05,87019.0,87018.0,0.19006839]
[1765895062080,9.791e-05,87019.0,87018.0,0.19106839]
[1765895062282,0.34397791,87019.0,87018.0,0.00329839]
[1765895063284,0.1848,87011.0,87010.0,0.00017234]
[1765895063597,0.1848,87011.0,87010.0,0.18794234]
[1765895063598,0.56596,87011.0,87010.0,0.18794234]
[1765895064275,0.65776,87011.0,87010.0,0.18794234]
[1765895064471,0.65776,87011.0,87010.0,0.00017234]
[1765895064876,0.65776,87011.0,87010.0,0.00117234]
[1765895066075,0.65776,87011.0,87010.0,0.09080234]
[1765895066274,0.65776,87011.0,87010.0,0.08980234]
[1765895066575,0.093,87011.0,87010.0,0.18794234]
[1765895066775,0.81648,87011.0,87010.0,0.18794234]
[1765895066988,0.90828,87011.0,87010.0,0.18794234]
[1765895067377,0.90828,87011.0,87010.0,0.00017234]
[1765895067880,0.1848,87011.0,87010.0,0.18794234]
[1765895068080,0.90832,87011.0,87010.0,0.18794234]
[1765895068285,0.1848,87011.0,87010.0,0.18794234]
[1765895068484,0.09309791,87019.0,87018.0,0.08963]
[1765895068679,0.09309791,87019.0,87018.0,0.18777]
[1765895068983,0.90845791,87019.0,87018.0,0.18777]
[1765895069684,0.74830648,87019.0,87013.0,0.011495]
[1765895069883,0.1848,87014.0,87013.0,0.199265]
[1765895070083,0.093,87014.0,87013.0,0.199265]
[1765895070290,0.18489791,87019.0,87018.0,0.1011244]
[1765895070478,0.90849791,87019.0,87018.0,0.1011244]
[1765895072782,0.90849791,87019.0,87018.0,0.1992644]
[1765895072783,0.09309791,87019.0,87018.0,0.1992644]
[1765895073182,0.81673791,87019.0,87018.0,0.1992644]
[1765895073588,0.90853791,87019.0,87018.0,0.1992644]
[1765895073784,0.81673791,87019.0,87018.0,0.1992644]
[1765895074891,0.09391,87011.0,87010.0,0.24346234]
[1765895075091,0.18563,87011.0,87010.0,0.24346234]
[1765895075791,0.09391,87011.0,87010.0,0.25495774]
[1765895076388,0.79167,87011.0,87010.0,0.25495774]
[1765895076693,0.88339,87011.0,87010.0,0.25495774]
[1765895077289,0.88339,87011.0,87010.0,0.00117234]
[1765895077485,0.90859994,87011.0,87010.0,0.00117234]
[1765895077791,0.18563,86989.0,86988.0,0.0114983]
[1765895077994,0.90940791,86989.0,86988.0,0.0114983]
[1765895078492,0.90940791,86989.0,86980.0,0.05595]
[1765895078701,0.90940791,86989.0,86988.0,0.0114983]
[1765895079589,0.90940791,86989.0,86988.0,0.2559983]
[1765895079796,0.72377791,86989.0,86988.0,0.2559983]
[1765895080186,0.81768791,86989.0,86988.0,0.2559983]
[1765895080387,0.81768791,86989.0,86988.0,0.002]
[1765895080388,0.91372791,86989.0,86988.0,0.002]
[1765895081389,9.791e-05,86989.0,86988.0,0.24276]
[1765895081586,0.18579791,86989.0,86988.0,0.24276]
[1765895081787,0.21095791,86989.0,86988.0,0.004]
[1765895081997,0.21095791,86989.0,86988.0,0.24276]
[1765895082291,0.90951791,86989.0,86988.0,0.24376]
[1765895082497,0.93476059,86989.0,86988.0,0.001]
[1765895082696,0.93476059,86989.0,86988.0,0.002]
[1765895083182,0.21104059,86989.0,86988.0,0.25234]
[1765895083492,0.74910059,86989.0,86988.0,0.25234]
[1765895084398,0.93582059,86989.0,86988.0,0.25234]
[1765895084794,0.21206059,86989.0,86988.0,0.25234]
[1765895084999,0.93582059,86989.0,86988.0,0.25234]
[1765895085493,0.93582059,86989.0,86988.0,0.002]
[1765895087801,0.93586059,86989.0,86988.0,0.002]
[1765895088202,0.21206059,86989.0,86988.0,0.24351]
[1765895088400,0.56606059,86989.0,86988.0,0.24351]
[1765895088593,0.56606059,86989.0,86988.0,0.002]
[1765895089595,0.21206059,86989.0,86988.0,0.15176]
[1765895089792,0.93590059,86989.0,86988.0,0.15176]
[1765895090290,0.94739879,86989.0,86988.0,0.002]
[1765895090493,0.22355879,86989.0,86988.0,0.002]
[1765895090690,0.22355879,86989.0,86978.0,0.00229945]
[1765895090691,0.18672,86979.0,86978.0,0.00229945]
[1765895090893,0.18672,86959.0,86958.0,0.0115022]
[1765895091199,0.81688268,86959.0,86958.0,0.0115022]
[1765895091397,0.18672,86956.0,86955.0,0.0115026]
[1765895091608,0.18672,86948.0,86947.0,0.0115036]
[1765895091907,0.18672,86937.0,86936.0,0.0115051]
[1765895092098,0.87316,86937.0,86936.0,0.0115051]
[1765895092294,0.18686689,86948.0,86947.0,0.0115037]
[1765895092496,0.70754879,86948.0,86947.0,0.1971837]
[1765895092692,0.70754879,86948.0,86947.0,0.0115037]
[1765895093099,0.18672,86937.0,86936.0,0.0115051]
[1765895093293,0.08941,86929.0,86919.0,0.0115074]
[1765895093499,0.74896,86929.0,86928.0,0.19735874]
[1765895093695,0.56224,86929.0,86928.0,0.19735874]
[1765895093999,0.18689255,86937.0,86936.0,0.1971852]
[1765895094408,0.91081255,86937.0,86936.0,0.1971852]
[1765895094610,0.91081255,86937.0,86936.0,0.0115052]
[1765895096013,0.91089255,86937.0,86936.0,0.0115052]
[1765895096305,0.91089255,86937.0,86936.0,0.1054352]
[1765895096500,0.72417255,86937.0,86936.0,0.1971852]
[1765895097100,0.00017255,86937.0,86936.0,0.1971852]
[1765895097295,0.81358255,86937.0,86936.0,0.1971852]
[1765895097897,0.81358255,86937.0,86936.0,0.1981852]
[1765895098099,0.91089255,86937.0,86936.0,0.1991852]
[1765895098295,0.91089255,86937.0,86936.0,0.1981852]
[1765895098609,0.91089255,86937.0,86936.0,0.1991852]
[1765895098808,0.72425255,86937.0,86936.0,0.1991852]
[1765895099200,0.00017255,86937.0,86936.0,0.1991852]
[1765895099412,0.60405255,86937.0,86936.0,0.1991852]
[1765895099604,0.54453255,86937.0,86936.0,0.1991852]
[1765895100310,0.73125255,86937.0,86936.0,0.002]
[1765895100695,0.75644001,86937.0,86936.0,0.001]
[1765895100902,0.75644001,86937.0,86928.0,0.00017244]
[1765895100903,0.18672,86929.0,86928.0,0.00017244]
[1765895101097,0.18672,86929.0,86928.0,0.18585244]
[1765895101098,0.6203611,86929.0,86928.0,0.18585244]
[1765895101707,0.00017255,86937.0,86936.0,0.1971852]
[1765895101911,0.72412,86947.0,86946.0,0.1971839]
[1765895102704,0.91092082,86947.0,86946.0,0.1971839]
[1765895102904,0.72420082,86947.0,86946.0,0.1971839]
[1765895103609,0.18316082,86947.0,86946.0,0.0115039]
[1765895104004,0.18316082,86947.0,86946.0,0.1040339]
[1765895104505,0.18316082,86947.0,86946.0,0.1972739]
[1765895104699,8.082e-05,86947.0,86946.0,0.1972739]
[1765895104910,0.00017255,86955.0,86954.0,0.1972728]
[1765895105417,0.38728992,86970.0,86969.0,0.0115008]
[1765895105603,0.32606397,86970.0,86969.0,0.0115008]
[1765895105803,0.32606397,86970.0,86956.0,0.0115025]
[1765895105804,0.18866,86960.0,86946.0,0.00017255]
[1765895106003,0.18866,86947.0,86946.0,0.01167645]
[1765895106205,0.54792767,86947.0,86946.0,0.00017255]
[1765895106410,0.54793905,86947.0,86946.0,0.00017255]
[1765895107608,0.54893905,86947.0,86946.0,0.00017255]
[1765895107815,0.93977905,86947.0,86946.0,0.00017255]
[1765895108009,0.93877905,86947.0,86946.0,0.00017255]
[1765895108316,0.18866,86923.0,86903.0,0.0115094]
[1765895108517,0.18866,86912.0,86911.0,0.0115085]
[1765895110617,0.00017255,86920.0,86907.0,0.0115089]
[1765895110818,0.18866,86917.0,86916.0,0.2560378]
[1765895111017,0.21458633,86917.0,86916.0,0.0115078]
[1765895111612,0.18866,86912.0,86911.0,0.002]
[1765895111817,0.18866,86908.0,86907.0,0.013509]
[1765895113024,0.18866,86908.0,86907.0,0.002]
[1765895113321,0.18866,86908.0,86907.0,0.011509]
[1765895115718,0.18866,86905.0,86904.0,0.00013345]
[1765895116022,0.21458693,86905.0,86904.0,0.00013345]
[1765895117016,0.21458693,86905.0,86904.0,0.24466345]
[1765895117214,0.21458693,86905.0,86904.0,0.24566345]
[1765895117820,0.18866,86911.0,86910.0,0.1040386]
[1765895118126,0.18866,86908.0,86907.0,0.011509]
[1765895118326,0.21459846,86908.0,86907.0,0.011509]
[1765895118926,0.18866,86905.0,86904.0,0.00213345]
[1765895119119,0.21459846,86905.0,86904.0,0.00213345]
[1765895119423,0.21459846,86905.0,86904.0,0.00113345]
[1765895119626,0.21459846,86905.0,86904.0,0.00213345]
[1765895120515,0.21459846,86905.0,86904.0,0.00113345]
[1765895121021,0.21459846,86905.0,86904.0,0.09366345]
[1765895121214,0.02593846,86905.0,86904.0,0.18690345]
[1765895121410,0.80423,86911.0,86910.0,0.18577]
[1765895121615,0.83020735,86911.0,86910.0,0.18577]
[1765895121818,0.92387735,86911.0,86910.0,0.1972786]
[1765895122225,0.73521735,86911.0,86910.0,0.1972786]
[1765895122427,0.00017255,86920.0,86919.0,0.1972774]
[1765895123722,0.18883255,86920.0,86919.0,0.1992774]
[1765895124321,0.18883255,86920.0,86919.0,0.2002774]
[1765895124524,0.18883255,86920.0,86919.0,0.0145074]
[1765895125021,0.18883255,86920.0,86919.0,0.1992774]
[1765895125022,0.00017255,86920.0,86919.0,0.1992774]
[1765895125422,0.00017255,86920.0,86919.0,0.1982774]
[1765895126021,0.18866,86905.0,86904.0,0.18590345]
[1765895126221,0.18866,86905.0,86904.0,0.00013345]
[1765895127233,0.18866,86905.0,86904.0,0.00313345]
[1765895127529,0.21464556,86905.0,86904.0,0.00313345]
[1765895128725,0.21464556,86905.0,86904.0,0.00113345]
[1765895131731,0.21464556,86905.0,86904.0,0.18690345]
[1765895131923,0.21464556,86905.0,86904.0,0.00113345]
[1765895133230,0.21464556,86905.0,86904.0,0.18690345]
[1765895134031,0.21464556,86905.0,86904.0,0.00113345]
[1765895134427,0.21464556,86905.0,86904.0,0.18369345]
[1765895136438,0.21464556,86905.0,86904.0,0.08925345]
[1765895137837,0.21464556,86905.0,86904.0,0.18369345]
[1765895138340,0.21464556,86905.0,86904.0,0.00113345]
[1765895138737,0.21464556,86905.0,86904.0,0.01264285]
[1765895140132,0.21464556,86905.0,86904.0,0.01268285]
[1765895140523,0.21464556,86905.0,86904.0,0.19524285]
[1765895141838,0.21464556,86905.0,86904.0,0.01268285]
[1765895142623,0.21464556,86905.0,86904.0,0.10080285]
[1765895143028,0.21464556,86905.0,86904.0,0.01268285]
[1765895143335,0.22615486,86905.0,86904.0,0.00117345]
[1765895144629,0.22615486,86905.0,86895.0,0.0115106]
[1765895144630,0.2045701,86899.0,86895.0,0.0115106]
[1765895144834,0.2045701,86899.0,86883.0,0.02189033]
[1765895144835,0.23055566,86899.0,86892.0,0.0115109]
[1765895145035,0.2045709,86893.0,86892.0,0.0115109]
[1765895145234,0.2045709,86893.0,86841.0,0.14406473]
[1765895145235,0.19306,86881.0,86880.0,0.0702726]
[1765895145437,0.21897544,86881.0,86880.0,0.0115126]
[1765895145634,0.21912064,86881.0,86880.0,0.0115126]
[1765895146344,0.19306,86873.0,86872.0,0.01168635]
[1765895146526,0.21897544,86873.0,86872.0,0.01168635]
[1765895146840,0.21897544,86873.0,86872.0,0.00017265]
[1765895147633,0.19306,86859.0,86858.0,0.01381812]
[1765895148145,0.19316488,86859.0,86858.0,0.19637812]
[1765895149231,0.09746488,86859.0,86858.0,0.19737812]
[1765895149436,0.00010488,86859.0,86858.0,0.19737812]
[1765895150643,0.09746488,86859.0,86858.0,0.19737812]
[1765895150832,0.19316488,86859.0,86858.0,0.19737812]
[1765895151662,0.00010488,86859.0,86858.0,0.19737812]
[1765895152147,0.00010488,86859.0,86858.0,0.19637812]
[1765895152344,0.00010488,86859.0,86858.0,0.19737812]
[1765895153949,0.00010488,86859.0,86858.0,0.19637812]
[1765895154250,0.00010488,86859.0,86858.0,0.19837812]
[1765895154750,0.00010488,86859.0,86858.0,0.19937812]
[1765895157044,0.19316488,86859.0,86858.0,0.19937812]
[1765895157445,0.19316488,86859.0,86858.0,0.00530262]
[1765895158037,0.00010488,86859.0,86858.0,0.18486262]
[1765895158341,0.00010488,86859.0,86858.0,0.18686262]
[1765895158542,0.19316488,86859.0,86858.0,0.09242262]
[1765895159039,0.19316488,86859.0,86858.0,0.18586262]
[1765895160139,0.19316488,86859.0,86858.0,0.00330262]
[1765895161041,0.19316488,86859.0,86858.0,0.18586262]
[1765895161441,0.00010488,86859.0,86858.0,0.18586262]
[1765895162351,0.09746488,86859.0,86858.0,0.18586262]
[1765895162551,0.00010488,86859.0,86858.0,0.18586262]
[1765895162940,0.19306,86899.0,86898.0,0.0115102]
[1765895163140,0.21886453,86899.0,86898.0,0.0115102]
[1765895163448,0.94346453,86899.0,86898.0,0.0996302]
[1765895163644,0.21886453,86899.0,86898.0,0.1880902]
[1765895163841,0.21892492,86899.0,86898.0,0.1880902]
[1765895164046,0.19312039,86899.0,86898.0,0.1880902]
[1765895164348,0.19412039,86899.0,86898.0,0.17658]
[1765895164549,0.18542,86895.0,86894.0,0.0115107]
[1765895165946,0.18542,86895.0,86894.0,0.1046507]
[1765895166250,0.18542,86895.0,86894.0,0.1931107]
[1765895166948,0.08922039,86899.0,86898.0,0.1931102]
[1765895167139,0.18548039,86899.0,86898.0,0.1931102]
[1765895167339,0.18542,86891.0,86890.0,0.24490395]
[1765895170156,0.18542,86891.0,86890.0,0.24590395]
[1765895170656,0.18542,86891.0,86890.0,0.00117265]
[1765895170657,0.21127562,86891.0,86890.0,0.00117265]
[1765895170853,0.18542,86870.0,86869.0,0.011514]
[1765895171055,0.18548039,86870.0,86860.0,0.05162]
[1765895171445,0.19699439,86870.0,86860.0,0.05162]
[1765895171652,0.18542,86863.0,86862.0,0.1931149]
[1765895171855,0.18542,86863.0,86862.0,0.0115149]
[1765895172156,0.18542,86863.0,86862.0,0.1931149]
[1765895173254,0.18542,86861.0,86860.0,0.14796]
[1765895173453,0.18542,86859.0,86854.0,0.00011547]
[1765895173650,0.18542,86859.0,86857.0,0.0115156]
[1765895174353,0.18542,86859.0,86858.0,0.09544262]
[1765895175753,0.18542,86859.0,86858.0,0.18390262]
[1765895176555,0.18542,86868.0,86867.0,0.1931143]
[1765895176760,0.11507034,86868.0,86867.0,0.1931143]
[1765895176954,0.02591034,86868.0,86867.0,0.1931143]
[1765895177161,6.039e-05,86870.0,86869.0,0.1816]
[1765895177356,0.18542,86899.0,86898.0,0.1816]
[1765895177558,0.18542,86881.0,86880.0,0.23642]
[1765895178054,0.18542,86881.0,86880.0,0.2479326]
[1765895178260,0.18542,86890.0,86889.0,0.2479314]
[1765895178457,0.21133638,86890.0,86889.0,0.2479314]
[1765895179253,0.02591638,86890.0,86889.0,0.25815161]
[1765895179558,0.18559265,86898.0,86897.0,0.1046504]
[1765895179759,0.21151443,86898.0,86897.0,0.1046504]
[1765895179959,0.09626,86891.0,86890.0,0.0115113]
[1765895180262,0.18542,86890.0,86889.0,0.001]
[1765895180663,0.08916,86888.0,86887.0,0.1931117]
[1765895181059,0.18542,86888.0,86887.0,0.1931117]
[1765895181269,0.18542,86885.0,86884.0,0.0115121]
[1765895181468,0.21132626,86885.0,86884.0,0.0115121]
[1765895181669,0.18542,86873.0,86870.0,0.05482]
[1765895182174,0.18542,86873.0,86860.0,0.05482]
[1765895182175,0.21132207,86873.0,86868.0,0.0115142]
[1765895182375,0.21132207,86873.0,86860.0,0.05482]
[1765895182563,0.21132207,86873.0,86870.0,0.0115138]
[1765895182762,0.0115116,86888.0,86882.0,0.0115123]
[1765895182966,0.18542,86883.0,86882.0,0.1046523]
[1765895183169,0.18542,86883.0,86882.0,0.1931123]
[1765895183170,0.08916,86883.0,86882.0,0.1931123]
[1765895183370,0.81364,86888.0,86887.0,0.1931117]
[1765895183675,0.18542,86894.0,86893.0,0.0115108]
[1765895183881,0.18542,86890.0,86889.0,0.0663314]
[1765895184575,0.18542,86890.0,86889.0,0.0115114]
[1765895185766,0.18542,86890.0,86889.0,0.2479314]
[1765895186366,0.08916,86890.0,86889.0,0.2479314]
[1765895187779,0.18542,86890.0,86889.0,0.0115114]
[1765895188277,0.04125,86889.0,86875.0,0.0115133]
[1765895188483,0.18542,86873.0,86872.0,0.01168625]
[1765895189978,0.18542,86873.0,86872.0,0.19328625]
[1765895190884,0.38442469,86885.0,86884.0,0.0115121]
[1765895191074,0.38442469,86885.0,86872.0,0.01168625]
[1765895191075,0.18542,86882.0,86881.0,0.0115124]
[1765895191279,0.21132507,86882.0,86881.0,0.1931124]
[1765895191474,0.02590507,86882.0,86881.0,0.1931124]
[1765895191674,0.18542,86887.0,86886.0,0.0115117]
[1765895191891,0.11506998,86887.0,86886.0,0.1931117]
[1765895192179,0.02937266,86892.0,86891.0,0.1931112]
[1765895192180,0.11853266,86892.0,86891.0,0.1931112]
[1765895192376,0.05528718,86892.0,86891.0,0.1931112]
[1765895192577,0.02937266,86892.0,86891.0,0.1931112]
[1765895192777,0.02937266,86892.0,86889.0,0.05482]
[1765895192778,0.18542,86897.0,86896.0,0.0115104]
[1765895192979,0.08916,86887.0,86886.0,0.1931117]
[1765895193185,0.18542,86897.0,86896.0,0.0115105]
[1765895193488,0.21133791,86897.0,86896.0,0.0115105]
[1765895194673,0.1812,86890.0,86889.0,0.14581]
[1765895194877,0.1812,86890.0,86889.0,0.23485]
[1765895195080,0.1812,86888.0,86887.0,0.0115117]
[1765895195286,0.1812,86888.0,86887.0,0.1025017]
[1765895195487,0.1812,86888.0,86887.0,0.0115117]
[1765895195682,0.1812,86885.0,86883.0,0.0115122]
[1765895195887,0.20735206,86884.0,86883.0,0.0115122]
[1765895196588,0.1812,86881.0,86880.0,0.0115125]
[1765895196887,0.1812,86879.0,86878.0,0.05482]
[1765895197081,0.20735206,86879.0,86878.0,0.05482]
[1765895197282,0.1812,86878.0,86877.0,0.0115129]
[1765895197885,0.1812,86873.0,86868.0,0.0115141]
[1765895198087,0.1812,86859.0,86845.0,0.08566543]
[1765895198279,0.20734863,86859.0,86847.0,0.0115169]
[1765895198473,0.20734863,86859.0,86845.0,0.08566543]
[1765895198474,0.20734863,86859.0,86849.0,0.0115166]
[1765895199191,0.20734863,86859.0,86852.0,0.0115163]
[1765895199389,0.02614863,86859.0,86858.0,0.18233262]
[1765895199589,0.36313,86866.0,86865.0,0.1915446]
[1765895199780,0.48051894,86866.0,86865.0,0.1915446]
[1765895199980,0.48051894,86866.0,86865.0,0.0115146]
[1765895200188,0.1812,86862.0,86861.0,0.011515]
[1765895200499,0.20731894,86862.0,86861.0,0.102505]
[1765895200684,0.1812,86859.0,86858.0,0.00230262]
[1765895201378,0.1812,86859.0,86858.0,0.09329262]
[1765895202183,0.20731159,86859.0,86858.0,0.09329262]
[1765895202378,0.20731159,86859.0,86858.0,0.00230262]
[1765895202595,0.1812,86859.0,86858.0,0.00230262]
[1765895202893,0.2073112,86859.0,86858.0,0.00230262]
[1765895203079,0.1812,86859.0,86858.0,0.00230262]
[1765895203278,0.20730723,86859.0,86858.0,0.00230262]
[1765895203489,0.20730723,86859.0,86858.0,0.09329262]
[1765895203690,0.1812,86851.0,86850.0,0.00011547]
[1765895203896,0.1812,86841.0,86840.0,9.321e-05]
[1765895204288,0.1812,86841.0,86840.0,0.09108321]
[1765895204795,0.1812,86841.0,86840.0,9.321e-05]
[1765895205296,0.1812,86841.0,86840.0,0.09108321]
[1765895205593,0.1812,86841.0,86840.0,9.321e-05]
[1765895206791,0.1812,86841.0,86840.0,0.18012321]
[1765895207992,0.1812,86841.0,86840.0,9.321e-05]
[1765895208190,0.1812,86841.0,86840.0,0.18012321]
[1765895208500,0.09010265,86849.0,86848.0,0.1915469]